Cogmind - Beta 10.2 @@@ ROGUE MODE // 2022.01.08 @ 18:33:11 Player: Kalkkis Result: Destroyed by H-88 Terminator with KE Penetrator Performance ------------- Evolutions (9) 4500 Regions Visited (24) 4800 Robots Destroyed (348) 1740 Value Destroyed (15450) 15450 Prototype IDs (128) 2560 Alien Tech Used (2) 400 Bonus (8029) 8029 TOTAL SCORE: 37479 Bonus ------- High Alert Combat Kills 4124 Follower Combat Kills 1916 Entered Garrisons 400 Used RIF Installer 1000 Network Hubs Disabled 600 Aligned with FarCom 300 Met Zhirov 300 Built Enhanced Grunts 300 A7 Reached Mainframe 300 Friendly Fire -1211 Cogmind --------- Core Integrity 0/1600 Matter 265/300 Energy 127/200 System Corruption 11% Temperature Cool (0) Movement Immobile (Siege) Location -1/Access Parts ------- > --- POWER (2) -------- (None) > --- PROPULSION (5) --- Biometal Heavy Treads > --- UTILITY (16) ----- Small Battery Advanced Visual Processing Unit Advanced Signal Interpreter Experimental Terrain Scan Processor Advanced Target Analyzer Advanced Target Analyzer Advanced Target Analyzer Advanced Target Analyzer Advanced Target Analyzer Advanced Target Analyzer Improved Hacking Suite > --- WEAPON (2) ------- KE Penetrator > --- INVENTORY (4) ---- Experimental Q-thruster Peak State ------------ > --- POWER ------------ Light Antimatter Reactor Quantum Reactor > --- PROPULSION ------- Armored Heavy Treads Biometal Leg Biometal Leg Biometal Leg > --- UTILITY ---------- Experimental Power Amplifier Advanced Heat Sink Experimental Heat Sink Large Storage Unit Experimental Terrain Scan Processor Advanced Targeting Computer Advanced Target Analyzer Advanced Target Analyzer Advanced Target Analyzer Advanced Target Analyzer Advanced Target Analyzer Quantum Capacitor Improved Thermal Shield Advanced Shield Generator Improved Hacking Suite > --- WEAPON ----------- HERF Cannon Fusion Bomb Launcher > --- INVENTORY -------- Advanced Matter Compressor Improved System Backup Module Transdimensional Reconstructor Gamma Rifle Gamma Rifle Gamma Rifle Enhanced Nova Cannon KE Penetrator KE Penetrator Railgun [Rating: 176] Favorites ----------- Power Micro Fission Core Engine Light Deuterium Engine Power Core Micro Fission Core Reactor Light Antimatter Reactor Propulsion Cooled Airjet Treads Light Treads Leg Improved Titanium Leg Wheel Compact Wheel Hover Unit Cooled Airjet Flight Unit Flight Unit Utility Hacking Suite Device Experimental Cooling System Storage Large Storage Unit Processor Advanced Targeting Computer Hackware Hacking Suite Protection Centrium Medium Armor Plating Weapon Cooled Particle Cannon Energy Gun Cooled Pulse Rifle Energy Cannon Cooled Particle Cannon Ballistic Gun KE Penetrator Launcher Precision Grenade Launcher Special Weapon Remote Datajack Impact Weapon Flail Slashing Weapon Katana Piercing Weapon Plasma Lance Special Melee Weapon Improved Datajack Build | -11 -10 -10 -10 -9 -8 -8 -7 -7 -7 -7 -7 -5 -5 -5 -5 -5 -4 -4 -4 -4 -3 -3 -2 -1 ------- Run | Scr Mat Min Exi Min Mat Gar Fac Gar Fac Sto Rec Fac Ext Cet Arc Hub Fac Upp Upp Zhi Pro Res Res Acc Slots Evolved 18 | . . . . . 4 . 2 . . . . 4 . . . . 2 . . . . 2 2 2 Power 1 | . . . . . . . . . . . . 1 . . . . . . . . . . . . Propulsion 3 | . . . . . 2 . . . . . . 1 . . . . . . . . . . . . Utility 14 | . . . . . 2 . 2 . . . . 2 . . . . 2 . . . . 2 2 2 Weapon . | . . . . . . . . . . . . . . . . . . . . . . . . . Parts Attached 533 | 10 25 4 1 4 66 16 45 2 24 14 2 12 26 5 10 23 37 2 1 12 7 55 24 106 Power 43 | 1 2 . . . 3 1 2 . 3 1 . 1 1 1 1 2 3 . . 1 . 6 1 13 Engine 8 | 1 . . . . 1 . 1 . . 1 . . 1 1 1 . . . . . . . . 1 Core 16 | . 2 . . . 2 1 1 . 3 . . 1 . . . 2 3 . . . . . . 1 Reactor 19 | . . . . . . . . . . . . . . . . . . . . 1 . 6 1 11 Propulsion 122 | 5 11 . . . 15 3 3 . 5 1 1 4 7 . 3 8 13 . . 4 . 13 9 17 Treads 11 | 2 4 . . . . . . . . . . . . . . . . . . . . . 1 4 Leg 10 | . . . . . 4 . . . . . . . . . . . . . . . . . 1 5 Wheel 8 | 3 4 . . . 1 . . . . . . . . . . . . . . . . . . . Hover 88 | . 3 . . . 7 3 3 . 5 1 1 4 7 . 3 8 13 . . 4 . 13 7 6 Flight 5 | . . . . . 3 . . . . . . . . . . . . . . . . . . 2 Utility 167 | 2 6 . . . 13 6 12 1 8 . . 4 6 2 5 4 13 1 1 5 6 24 10 38 Device 89 | 1 3 . . . 7 1 7 1 4 . . 1 4 1 1 3 5 . . 4 6 13 6 21 Storage 9 | 1 1 . . . 1 . . . 1 . . . . . . . 2 . . . . 1 . 2 Processor 18 | . 2 . . . 1 1 1 . . . . . . . . . 1 1 . . . . 1 10 Hackware 22 | . . . . . 3 4 3 . 1 . . 1 . . 4 1 2 . . . . 1 . 2 Protection 29 | . . . . . 1 . 1 . 2 . . 2 2 1 . . 3 . 1 1 . 9 3 3 Artifact . | . . . . . . . . . . . . . . . . . . . . . . . . . Weapon 201 | 2 6 4 1 4 35 6 28 1 8 12 1 3 12 2 1 9 8 1 . 2 1 12 4 38 Energy Gun 37 | . 1 . . . 8 . 7 . 2 3 . 1 7 . 1 1 . . . . . 1 . 5 Energy Cannon 64 | . . . . 2 15 . 12 . 3 6 . 2 . . . 2 2 . . . . 4 2 14 Ballistic Gun 33 | 2 2 . . . 3 3 2 . . 1 . . . 1 . 4 4 . . . 1 2 . 8 Ballistic Cannon . | . . . . . . . . . . . . . . . . . . . . . . . . . Launcher 28 | . . 2 . . 1 2 . 1 1 2 1 . 3 . . 1 1 1 . 1 . 2 1 8 Special Weapon 5 | . . 2 . . . . 1 . 2 . . . . . . . . . . . . . . . Impact Weapon 10 | . 2 . . 1 3 . . . . . . . . . . . . . . . . 1 1 2 Slashing Weapon 3 | . . . . . . 1 2 . . . . . . . . . . . . . . . . . Piercing Weapon 1 | . . . . . . . . . . . . . . . . . 1 . . . . . . . Special Melee Weapon 20 | . 1 . 1 1 5 . 4 . . . . . 2 1 . 1 . . . 1 . 2 . 1 Unidentified Prototypes 27 | . . . . . 3 . 1 . 1 5 . . . 2 1 2 2 . 1 4 . 2 1 2 Parts Lost 113 | . 1 . . . 7 2 1 1 2 . 1 2 10 . 4 7 6 . . . 2 9 . 58 Power 20 | . . . . . 1 1 . . . . . . 1 . 1 2 . . . . . 2 . 12 Propulsion 30 | . . . . . 3 . . . 1 . 1 . 5 . 1 2 . . . . . 1 . 16 Utility 40 | . . . . . 2 1 1 1 1 . . 1 2 . 2 1 3 . . . 1 4 . 20 Weapon 23 | . 1 . . . 1 . . . . . . 1 2 . . 2 3 . . . 1 2 . 10 Highest Loss Streak 14 | . 1 . . . 7 1 1 1 1 . 1 1 3 . 4 2 3 . . . 2 4 . 14 Average Slot Usage (%) 96 | . 99 100 100 100 95 95 98 99 98 98 100 92 99 99 89 99 97 100 100 98 99 97 98 88 Engine 2 | . 7 . . . 3 . . . . 4 7 5 6 10 11 7 . . . . . . . . Core 4 | . 5 14 14 14 5 8 6 7 6 2 . 3 3 . . 3 9 10 10 8 5 1 . . Reactor 1 | . . . . . . . . . . . . . . . . . . . . 1 5 6 8 7 Treads 1 | . 9 . . . . . . . . . . . . . . . . . . . . . . 2 Leg 2 | . . . . . 2 32 2 . . . . . . . . . . . . . . . . 2 Hover 22 | . 12 28 28 28 22 3 27 30 29 29 30 27 28 29 25 28 25 26 26 25 26 22 20 12 Device 9 | . 11 14 14 14 12 . 10 6 4 . . 4 5 10 4 2 6 5 5 4 8 13 13 18 Storage 5 | . 7 . . . . 9 7 7 7 7 7 5 5 5 5 5 4 5 5 5 5 4 4 4 Processor 7 | . 8 14 14 14 1 . . 7 7 7 7 5 5 5 5 5 3 8 10 10 10 9 12 20 Hackware 16 | . . . . . 17 23 22 15 18 23 23 22 20 17 16 26 28 22 21 21 16 16 13 9 Protection 4 | . . . . . 1 . 3 7 6 7 7 5 7 5 5 5 6 10 10 10 10 9 16 4 Energy Gun 1 | . 2 . . . 1 . . . 1 7 . 3 4 . . 3 . . . . . . . . Energy Cannon 3 | . . . . . 2 . 4 7 6 6 13 3 5 5 4 2 2 5 5 5 5 3 3 2 Ballistic Gun 2 | . 12 . . . . 15 . . . . . . . 3 . 3 5 . . . 3 2 . . Impact Weapon 2 | . 7 14 14 13 8 . . . . . . . . . . . . . . . . . 3 1 Special Melee Weapon 1 | . 6 . 5 14 4 . 2 . . . . . . 1 5 1 . . . 3 . . . . Naked Turns . | . . . . . . . . . . . . . . . . . . . . . . . . . Heaviest Build 90 | 13 26 9 9 18 28 28 48 45 49 51 51 52 59 59 48 49 55 55 55 70 69 81 82 90 Greatest Support 94 | 16 40 12 12 12 80 80 51 51 54 51 51 65 63 54 54 65 65 65 65 73 73 94 94 94 Greatest Overweight (x) 2 | . 1 . . 2 1 1 1 . 1 1 1 1 1 1 1 1 1 . . . . 1 1 2 Average Overweight (x) . | . . . . . . . . . . . . . . . . . . . . . . . . . Largest Inventory Capacity 10 | 6 10 4 4 4 10 10 10 10 10 10 10 10 10 10 10 10 10 10 10 10 10 10 10 10 Average Capacity 8 | 5 7 4 4 4 4 10 10 10 10 10 10 10 10 10 10 10 9 10 10 10 10 10 10 9 Most Carried 10 | 5 10 4 4 4 10 10 10 10 10 10 10 10 10 10 10 10 10 10 10 10 10 10 10 10 Average Carried 8 | 3 7 4 3 3 4 9 9 9 9 9 9 9 9 9 9 9 9 10 9 9 9 8 9 8 Final Capacity 10 | 6 4 4 4 4 10 10 10 10 10 10 10 10 10 10 10 10 10 10 10 10 10 10 10 4 Final Carried 10 | 5 4 4 4 4 10 10 10 10 10 10 9 10 10 10 10 9 10 10 10 10 10 10 10 1 Class Distribution -------------------- 52% | Hacker-Mutant 16% | Scavenger-Mutant 7% | Wizard-Mutant 7% | Mutant 5% | Hacker-Scout 4% | Commander-Mutant 4% | Scavenger-Scout Dominant Class ---------------- Mutant | -10/Materials Scavenger-Mutant | -10/Mines Scavenger-Mutant | -10/Exiles Scavenger-Scout | -9/Mines Hacker-Mutant | -8/Materials Hacker-Mutant | -8/Garrison Hacker-Mutant | -7/Factory Hacker-Mutant | -7/Garrison Hacker-Mutant | -7/Factory Hacker-Mutant | -7/Storage Commander-Mutant | -7/Recycling Hacker-Mutant | -5/Factory Hacker-Mutant | -5/Extension Scavenger-Mutant | -5/Cetus Scavenger-Mutant | -5/Archives Scavenger-Mutant | -5/Hub_04(d) Wizard-Mutant | -4/Factory Hacker-Mutant | -4/Upper Caves Hacker-Mutant | -4/Upper Caves Hacker-Mutant | -4/Zhirov Hacker-Mutant | -3/Proximity Caves Hacker-Mutant | -3/Research Hacker-Scout | -2/Research Hacker-Scout | -1/Access Resources | -11 -10 -10 -10 -9 -8 -8 -7 -7 -7 -7 -7 -5 -5 -5 -5 -5 -4 -4 -4 -4 -3 -3 -2 -1 ----------- Run | Scr Mat Min Exi Min Mat Gar Fac Gar Fac Sto Rec Fac Ext Cet Arc Hub Fac Upp Upp Zhi Pro Res Res Acc Matter Collected 8697 | 303 339 52 38 39 716 468 365 122 293 242 40 136 355 108 100 442 650 203 98 . 352 1099 316 1821 Remotely 210 | 181 19 . . . . . 10 . . . . . . . . . . . . . . . . . Salvage Created 16238 | 70 490 106 . 26 1323 603 626 230 345 503 288 450 1153 245 380 1477 775 159 313 . 744 1091 381 4460 Parts 723 | 3 41 7 . . 53 40 31 12 21 27 11 21 48 5 14 71 29 12 13 . 31 66 15 152 Haulers Intercepted 14 | . . . . . 6 . 3 . . . . . . . . 1 . . . . . 1 . 3 Recyclers Shooed 11 | . 1 . . . 1 . . . 1 . 1 . 3 . . . . . . . . . . 4 Parts Field Recycled 10 | . . . . . . . . . . . . . . . . . . . . . . . . 10 Retrieved Matter 75 | . . . . . . . . . . . . . . . . . . . . . . . . 75 Parts Self-Destructed 49 | . . . . . . . . . . . . . . . . . . 7 13 . 29 . . . Prevented . | . . . . . . . . . . . . . . . . . . . . . . . . . Kills | -11 -10 -10 -10 -9 -8 -8 -7 -7 -7 -7 -7 -5 -5 -5 -5 -5 -4 -4 -4 -4 -3 -3 -2 -1 ------- Run | Scr Mat Min Exi Min Mat Gar Fac Gar Fac Sto Rec Fac Ext Cet Arc Hub Fac Upp Upp Zhi Pro Res Res Acc Combat Hostiles Destroyed 242 | . 11 3 . 1 14 18 8 11 6 9 4 6 15 4 1 11 9 10 8 . 12 18 6 57 Melee 3 | . 2 1 . . . . . . . . . . . . . . . . . . . . . . Guns 56 | . 9 . . . . 11 . . . 2 . 1 3 4 . 7 3 . . . 5 7 . 4 Cannons 76 | . . . . . 11 . 7 2 3 3 2 3 6 . 1 . 4 . 2 . 6 8 3 15 AOE 90 | . . 1 . . 3 7 . 9 3 4 2 . 6 . . 2 1 10 6 . 1 3 3 29 Classes Destroyed 21 | 1 6 . . . 5 2 . . . . 1 . 4 . . 1 . . 1 . . . . . Worker 20 | . . . . . 2 . . . 1 . . . . . . 4 2 . . . . 3 2 6 Builder 9 | . 1 . . . 1 . . . 1 . . 1 1 . . 1 . . . . . . . 3 Tunneler 5 | . 2 . . . 3 . . . . . . . . . . . . . . . . . . . Hauler 14 | . . . . . 6 . 3 . . . . . . . . 1 . . . . . 1 . 3 Recycler 17 | 1 . . . . 3 . . . 1 . 2 . 2 . . 2 1 . . . . . . 5 Minesweeper 2 | . . . . . . . . . . . . . . . . . . . 1 . 1 . . . Mechanic 1 | . . . . . 1 . . . . . . . . . . . . . . . . . . . Operator 15 | . 1 . . . . . 1 . . . . . 2 . 8 3 . . . . . . . . Drone 4 | . . . . . . . . . . . 4 . . . . . . . . . . . . . Watcher 20 | . 1 . . . 3 . . . 1 1 . . . . . 4 2 . . . . 2 . 6 Swarmer 54 | . 3 1 . . 3 7 . 7 2 3 . . . . . . . 8 6 . . 11 3 . Saboteur 3 | . . . . . . . . . . . . . 1 . . . 1 . . . . . . 1 Grunt 90 | . 8 2 . . 4 8 6 4 3 . . 3 6 4 . 2 1 . 1 . 8 . . 30 Brawler 4 | . . . . . 1 . . . . . 1 . 1 . . . . . . . . . . 1 Duelist 11 | . . . . . . 2 . . . . . . 3 . . . 1 . . . 2 . . 3 Protector 2 | . . . . . . . . . . . . . . . . 1 . . . . . . . 1 Sentry 39 | . . . . . 6 . 2 . 1 6 . 3 1 . 1 7 2 . 1 . . 4 3 2 Specialist 1 | . . . . . . . . . . . . . 1 . . . . . . . . . . . Hunter 23 | . . . . . . 1 . . . . . . . . . 1 4 2 . . 2 . . 13 Programmer 10 | . . . . . . . . . . . . . 1 . . . . . . . . 3 . 6 Behemoth 2 | . . . . . . . . . . . . . 1 . . . . . . . . . . 1 Enhanced Grunt 1 | . . . . . . . . . . . . . . . . 1 . . . . . . . . Decomposer 1 | . . . . . . . . . . . . . . . . . . 1 . . . . . . Best Kill Streak 28 | 1 4 2 . 1 5 7 2 10 3 3 2 4 5 4 3 6 2 8 5 . 4 5 3 28 Combat Bots Only 24 | . 4 2 . 1 4 7 2 10 3 3 2 4 5 4 1 2 2 8 5 . 4 5 3 24 Max Kills in Single Turn 6 | 1 2 1 . 1 1 4 1 2 2 2 2 1 2 1 1 6 1 3 2 . 2 2 2 3 Gunslinging 1 | . 1 . . . . . . . . . . . . . . . . . . . . . . . Exploded 4 | . . 1 . . 1 4 . 2 1 2 2 . 2 . . 2 1 3 2 . 1 2 2 2 Melee 1 | . 1 1 . . . . . . . . . . . . . . . . . . . . . . Uniques/NPCs Destroyed 1 | . . . . 1 . . . . . . . . . . . . . . . . . . . . YI-UF0 (-9/Mines) Combat | -11 -10 -10 -10 -9 -8 -8 -7 -7 -7 -7 -7 -5 -5 -5 -5 -5 -4 -4 -4 -4 -3 -3 -2 -1 -------- Run | Scr Mat Min Exi Min Mat Gar Fac Gar Fac Sto Rec Fac Ext Cet Arc Hub Fac Upp Upp Zhi Pro Res Res Acc Damage Taken 20248 | . 291 71 . 96 523 930 448 255 491 430 39 399 738 47 213 1324 1023 331 242 . 819 2215 175 9148 Core 2781 | . 23 21 . 41 100 116 34 62 56 19 . 25 65 . . 69 97 38 53 . 87 243 15 1617 Absorbed by Shields 972 | . . . . . . . . . . . 2 . 134 27 12 . . . . . . 104 62 631 Reduced by Siege Mode 227 | . . . . . . . . . . . . . . . . . . . . . . . . 227 Core Remaining (%) 80 | 100 . . . 66 . 60 . . . . 75 . . . . 84 . . . . 76 81 98 . Volleys Fired 1152 | 3 29 6 . 6 56 47 88 15 54 33 16 13 72 18 68 60 66 40 22 . 42 112 29 257 Largest 2 | 2 2 1 . 1 1 2 1 2 2 2 2 2 2 2 1 2 2 2 2 . 2 2 1 2 Hottest 330 | 40 85 100 . 120 120 46 120 120 150 180 60 90 111 171 90 330 153 156 156 . 156 155 120 150 Shots Fired 1492 | 6 57 6 . 6 56 85 87 17 56 49 31 25 106 27 68 98 102 46 23 . 71 134 29 307 Gun 565 | 6 57 . . . 1 81 . . 2 22 . 13 36 17 . 85 65 . . . 25 48 . 107 Cannon 802 | . . . . 6 51 . 79 8 45 22 30 12 60 10 68 11 32 35 17 . 41 84 27 164 Launcher 114 | . . 4 . . 4 4 . 9 8 5 1 . 10 . . 2 5 11 6 . 5 2 2 36 Special 11 | . . 2 . . . . 8 . 1 . . . . . . . . . . . . . . . Kinetic 426 | 6 53 . . . . 81 . . . . . . . 12 . 61 65 . . . 25 48 . 75 Thermal 872 | . 4 2 . 6 52 . 79 8 47 44 30 25 96 15 68 35 32 35 17 . 41 84 27 125 Explosive 109 | . . 4 . . 4 4 . 9 8 . 1 . 10 . . 2 5 11 6 . 5 2 2 36 Electromagnetic 76 | . . . . . . . . . . 5 . . . . . . . . . . . . . 71 Robot Hit Streak 26 | 3 11 3 . 8 9 12 10 12 9 21 2 18 19 4 6 12 18 19 19 . 24 19 9 26 Robot Miss Streak 12 | 1 2 . . . 4 2 2 1 1 2 12 1 3 2 4 4 3 3 . . 2 3 1 3 Penetration Max 1 | . . . . . . . . . . . . . . 1 . 1 1 . . . 1 1 . 1 Secondary Targets 7 | . 3 . . . . 3 . . . . . . . . . . . . . . . . . 1 Max Gunslinging Chain 1 | . 1 . . . . 1 . . . . . . . . . . . . . . . . . 1 Capacitor 172 | . . . . . . . . . . . . . . . . . . . . . . 24 . 148 Shots Hit Robots 975 | 4 51 5 . 5 47 59 56 8 17 29 4 23 81 14 44 56 64 12 17 3 53 82 17 224 Core Hits 603 | 2 24 3 . . 22 34 14 17 18 17 8 9 52 10 16 39 33 19 19 . 28 42 12 165 Critical Hits 55 | . . . . . 3 . 2 . . 1 . 1 2 3 2 8 7 . . . 8 7 1 10 Critical Kills 19 | . . . . . 1 . . . . . . 1 1 3 1 4 3 . . . 3 1 . 1 Critical Parts Destroyed 31 | . . . . . 1 . 2 . . 1 . . 1 . 1 4 2 . . . 5 6 1 7 Melee Attacks 169 | . 17 2 . . 83 . 42 . . . . . 2 2 . . . . . 3 . 1 . 17 Impact 101 | . 13 2 . . 72 . . . . . . . . . . . . . . . . 1 . 13 Slashing 11 | . . . . . . . 11 . . . . . . . . . . . . . . . . . Piercing . | . . . . . . . . . . . . . . . . . . . . . . . . . Sneak Attacks 78 | . 6 . . . 27 . 30 . . . . . 2 2 . . . . . 3 . 1 . 7 Combat Hostiles 6 | . 2 . . . . . . . . . . . . . . . . . . . . . . 4 Follow-up Attacks . | . . . . . . . . . . . . . . . . . . . . . . . . . Damage Inflicted 50043 | 36 798 370 . 200 3457 1208 1582 902 852 1264 465 723 3669 505 1397 3068 2226 1216 1110 . 2481 3731 1275 17508 Guns 10192 | 36 403 . . . . 862 . . 36 415 . 392 721 339 . 1773 1045 . . . 667 1033 . 2470 Cannons 19508 | . . . . 200 1491 . 977 115 393 605 257 331 1383 166 1397 372 890 212 571 . 1304 2078 928 5838 Explosions 17132 | . . 303 . . 237 346 . 787 423 244 208 . 1565 . . 923 291 1004 539 . 510 543 347 8862 Melee 3202 | . 390 67 . . 1729 . 605 . . . . . . . . . . . . . . 77 . 334 Ramming 9 | . 5 . . . . . . . . . . . . . . . . . . . . . . 4 Kinetic 7034 | 36 362 . . . . 862 . . . . . . . 219 . 1073 1045 . . . 667 1033 . 1737 Thermal 20591 | . 41 . . 200 1491 . 977 115 429 1042 257 723 2104 286 1397 1072 890 212 571 . 1304 2078 928 4474 Explosive 16075 | . . 303 . . 237 346 . 787 423 110 208 . 1565 . . . 291 1004 539 . 510 543 347 8862 Electromagnetic 3132 | . . . . . . . . . . 112 . . . . . 923 . . . . . . . 2097 Impact 2597 | . 390 67 . . 1729 . . . . . . . . . . . . . . . . 77 . 334 Slashing 605 | . . . . . . . 605 . . . . . . . . . . . . . . . . . Piercing . | . . . . . . . . . . . . . . . . . . . . . . . . . Highest Corruption 11 | . 2 2 2 2 8 8 . . 2 3 3 . 1 . . 7 . . . . . 1 . 11 Average Corruption 3 | . 1 2 2 2 8 8 . . 1 2 3 . 1 . . 2 . . . . . 1 . 1 Corruption Purged 9 | . . . . . . . . . 2 . . . 1 . . . . . . . . 1 . 5 Effects 139 | . 9 4 1 3 47 33 . . 1 14 9 . 2 . . 1 . . . . . . . 15 Message Errors 41 | . 5 1 1 1 12 8 . . 1 5 2 . . . . 1 . . . . . . . 4 Matter Fused 22 | . . . . . 9 4 . . . 5 4 . . . . . . . . . . . . . Heat Flow Errors 17 | . . 2 . . 7 3 . . . 2 1 . . . . . . . . . . . . 2 Energy Discharges 13 | . . . . 1 5 3 . . . . 2 . 2 . . . . . . . . . . . Parts Rejected 1 | . . . . . . 1 . . . . . . . . . . . . . . . . . . Data Loss (minor) 15 | . 2 1 . 1 7 2 . . . . . . . . . . . . . . . . . 2 Data Loss (major) 3 | . . . . . 1 2 . . . . . . . . . . . . . . . . . . Misfires 2 | . . . . . 1 . . . . . . . . . . . . . . . . . . 1 Misdirections 1 | . . . . . . . . . . . . . . . . . . . . . . . . 1 Targeting Errors 19 | . 2 . . . 4 9 . . . 1 . . . . . . . . . . . . . 3 Weapon Failures 5 | . . . . . 1 1 . . . 1 . . . . . . . . . . . . . 2 Overload Shots 82 | . . . . . . . 8 1 11 21 . 8 5 4 6 18 . . . . . . . . Effects 4 | . . . . . . . . 1 . . . 1 2 . . . . . . . . . . . Heat Surge 2 | . . . . . . . . 1 . . . 1 . . . . . . . . . . . . Meltdown 2 | . . . . . . . . . . . . . 2 . . . . . . . . . . . Overflow Damage 2086 | . 81 16 . 5 519 37 107 27 36 2 24 . 42 . 93 44 17 37 82 . 69 167 42 639 Projectiles 668 | . . . . 5 57 . 14 27 36 . . . 5 . 93 9 16 37 50 . 68 74 40 137 Explosions 593 | . . 9 . . . 37 . . . 2 24 . 37 . . 35 1 . 32 . 1 46 2 367 Melee 825 | . 81 7 . . 462 . 93 . . . . . . . . . . . . . . 47 . 135 Knockbacks 12 | . . . . . 6 . . . . . . . . . . . . . . . . 1 . 5 Impact 11 | . . . . . 6 . . . . . . . . . . . . . . . . 1 . 4 Kinetic . | . . . . . . . . . . . . . . . . . . . . . . . . . Secondary 1 | . . . . . . . . . . . . . . . . . . . . . . . . 1 Self-Inflicted Damage 669 | . . 29 . . 30 . . 13 . 46 . . . . . 297 46 . . . . . . 208 Shots 12 | . . 1 . . 1 . . 1 . 1 . . . . . 3 1 . . . . . . 4 Rammed 4 | . 3 . . . . . . . . . . . . . . . . . . . . . . 1 Targets Rammed 4 | . 3 . . . . . . . . . . . . . . . . . . . . . . 1 Kicked . | . . . . . . . . . . . . . . . . . . . . . . . . . Crushed . | . . . . . . . . . . . . . . . . . . . . . . . . . Highest Temperature 506 | . 104 169 . 506 330 265 252 138 172 335 161 353 289 352 48 435 362 . 9 . 260 310 . 328 Average Temperature 99 | . 26 56 . 229 117 95 78 78 44 83 67 193 65 171 23 139 97 . 5 . 87 77 . 72 Received Heat Transfer 1923 | . 150 18 . . . 396 96 45 72 72 . 90 225 9 27 126 27 . 39 . 117 57 18 339 Effects 20 | . . . . 3 . . . . . . . 8 . 1 . 5 2 . . . . . . 1 Shutdowns 6 | . . . . . . . . . . . . 2 . . . 3 1 . . . . . . . Energy Bleed 3 | . . . . . . . . . . . . 1 . . . . 1 . . . . . . 1 Interference 8 | . . . . 3 . . . . . . . 4 . . . 1 . . . . . . . . Short Circuit 3 | . . . . . . . . . . . . 1 . 1 . 1 . . . . . . . . Siege Activations 6 | . . . . . . . . . . . . . . . . . . . . . . . . 6 Total Turns 83 | . . . . . . . . . . . . . . . . . . . . . . . . 83 Longest Duration 41 | . . . . . . . . . . . . . . . . . . . . . . . . 41 Robots Corrupted 13 | . . . . . . . . . . . . . . . . 2 . . . . . . . 11 Combat Hostiles 10 | . . . . . . . . . . . . . . . . 1 . . . . . . . 9 Parts Fried 36 | . . 1 . . 12 . . . . . . . . . . 5 . . . . . . . 18 Impact Corruptions 29 | . 3 1 . . 19 . . . . . . . . . . . . . . . . 1 . 5 Robots Melted 5 | . . . . 1 . . 1 . . . . 2 . . . 1 . . . . . . . . Combat Hostiles 5 | . . . . 1 . . 1 . . . . 2 . . . 1 . . . . . . . . Parts Melted 32 | . . . . . 2 . 1 . . 6 . 3 9 . 4 2 1 . . . 2 1 . 1 Heat Transferred 22564 | . 111 . . 480 3360 . 1731 148 544 1305 314 992 2808 341 1804 1018 814 185 481 . 1110 1591 629 2798 Parts Sabotaged . | . . . . . . . . . . . . . . . . . . . . . . . . . Parts Stolen . | . . . . . . . . . . . . . . . . . . . . . . . . . Parts Stripped . | . . . . . . . . . . . . . . . . . . . . . . . . . Power Chain Reactions 1 | . . . . . . . . . . 1 . . . . . . . . . . . . . . Missiles Intercepted . | . . . . . . . . . . . . . . . . . . . . . . . . . Alert | -11 -10 -10 -10 -9 -8 -8 -7 -7 -7 -7 -7 -5 -5 -5 -5 -5 -4 -4 -4 -4 -3 -3 -2 -1 ------- Run | Scr Mat Min Exi Min Mat Gar Fac Gar Fac Sto Rec Fac Ext Cet Arc Hub Fac Upp Upp Zhi Pro Res Res Acc Peak Influence 1788 | 5 181 230 . . 311 764 746 882 675 349 402 1156 1491 1268 742 1755 1130 . . . . 546 988 1788 Initial 1043 | . 3 . . . . 133 401 522 462 261 72 1043 512 750 507 259 859 . . . . 165 297 292 Average 411 | 1 57 66 . . 155 496 255 717 554 152 226 1040 891 1103 696 261 533 . . . . 353 596 744 Maximum Alert Level 5 | . . 1 . . 1 3 3 3 2 1 2 4 4 4 3 5 4 . . . . 2 3 5 Low Security (%) 34 | 100 100 94 . 100 57 9 42 . . 72 40 . . . . 56 9 . . . . 8 . 19 Level 1 24 | . . 5 . . 42 19 44 . . 27 57 . . . . 28 42 . . . . 45 21 18 Level 2 22 | . . . . . . 57 7 35 100 . 1 . 40 . 36 5 12 . . . . 46 38 24 Level 3 12 | . . . . . . 13 5 64 . . . 75 36 39 63 4 34 . . . . . 39 11 Level 4 2 | . . . . . . . . . . . . 24 22 60 . 3 1 . . . . . . 2 Level 5 2 | . . . . . . . . . . . . . . . . 1 . . . . . . . 23 High Security . | . . . . . . . . . . . . . . . . . . . . . . . . . Max Security . | . . . . . . . . . . . . . . . . . . . . . . . . . Squads Dispatched 81 | . 6 . . . 8 . 10 . 5 . . 5 4 1 . 9 8 . . . . 8 2 15 Investigation 39 | . 5 . . . 7 . 8 . 2 . . 1 . 1 . 1 3 . . . . 4 2 5 Extermination 13 | . . . . . . . 1 . 1 . . 1 . . . 1 2 . . . . 3 . 4 Reinforcement 13 | . 1 . . . 1 . 1 . 2 . . . 1 . . 4 . . . . . . . 3 Assault 9 | . . . . . . . . . . . . . 3 . . . 2 . . . . 1 . 3 Garrison 7 | . . . . . . . . . . . . 3 . . . 3 1 . . . . . . . Intercept . | . . . . . . . . . . . . . . . . . . . . . . . . . Construction Impeded 5 | . . . . . 1 . . . . . . . . . . 2 . . . . . . . 2 Haulers Reinforced 2 | . . . . . . . 1 . . . . . . . . . . . . . . . . 1 Stealth | -11 -10 -10 -10 -9 -8 -8 -7 -7 -7 -7 -7 -5 -5 -5 -5 -5 -4 -4 -4 -4 -3 -3 -2 -1 --------- Run | Scr Mat Min Exi Min Mat Gar Fac Gar Fac Sto Rec Fac Ext Cet Arc Hub Fac Upp Upp Zhi Pro Res Res Acc Distress Signals 24 | . . . . . 3 . . . 1 2 . . 1 1 . 3 3 . . . . 2 . 8 Communications Jammed . | . . . . . . . . . . . . . . . . . . . . . . . . . Distress Signals . | . . . . . . . . . . . . . . . . . . . . . . . . . Times Spotted 472 | . 23 9 . 1 19 19 26 13 20 12 25 10 41 13 23 31 27 8 8 . 12 37 6 89 Peak Tracking Total 13 | . 5 3 . 1 5 8 6 7 7 3 4 5 6 5 3 8 13 4 5 . 5 6 4 9 Tactical Retreats 40 | . . 1 . . 2 4 3 2 3 . . . 1 . . 3 4 . . . . 7 1 9 Traps | -11 -10 -10 -10 -9 -8 -8 -7 -7 -7 -7 -7 -5 -5 -5 -5 -5 -4 -4 -4 -4 -3 -3 -2 -1 ------- Run | Scr Mat Min Exi Min Mat Gar Fac Gar Fac Sto Rec Fac Ext Cet Arc Hub Fac Upp Upp Zhi Pro Res Res Acc Traps Triggered 19 | . 1 . . . . 3 2 2 5 1 . 1 1 . . 2 . . . . . . . 1 Indirectly 2 | . . . . . . . . . . . . . . . . 2 . . . . . . . . Trap Hack Attempts 142 | . 64 . . . 31 . 7 . . . . . . . . 28 . . . . . 12 . . Triggered 1 | . . . . . . . . . . . . . . . . 1 . . . . . . . . Disarmed 5 | . . . . . . . 1 . . . . . . . . 4 . . . . . . . . Reprogrammed 36 | . 8 . . . 3 . . . . . . . 4 . . 8 10 . . . . 3 . . Reused 17 | . . . . . 3 . . . . . . . . . . 4 6 . . . 1 3 . . Traps Extracted . | . . . . . . . . . . . . . . . . . . . . . . . . . Installed 2 | . . . . . . . . . . . . . . . . . . . . . 1 1 . . Triggered 17 | . . . . . 3 . . . . . . . . . . 4 6 . . . 1 3 . . Machines | -11 -10 -10 -10 -9 -8 -8 -7 -7 -7 -7 -7 -5 -5 -5 -5 -5 -4 -4 -4 -4 -3 -3 -2 -1 ---------- Run | Scr Mat Min Exi Min Mat Gar Fac Gar Fac Sto Rec Fac Ext Cet Arc Hub Fac Upp Upp Zhi Pro Res Res Acc Machines Disabled 66 | . . . . . . 2 . 2 . 5 2 . 3 4 3 36 1 . 2 . . . . 6 Max in Single Turn 15 | . . . . . . 1 . 1 . 2 1 . 1 1 1 15 1 . 1 . . . . 1 Garrison Access 7 | . . . . . . . 2 . . . . . . . . . 1 . . . . 1 1 2 Garrison Relay 3 | . . . . . . 2 . 1 . . . . . . . . . . . . . . . . Network Hub 3 | . . . . . . . . . . . . . . . . 3 . . . . . . . . Machines Sabotaged . | . . . . . . . . . . . . . . . . . . . . . . . . . Garrisons Compromised . | . . . . . . . . . . . . . . . . . . . . . . . . . Overloaded Fab Kills . | . . . . . . . . . . . . . . . . . . . . . . . . . Fab Network Shutdowns 3 | . . . . . . . 1 . . . . . . . . . . . . . . . 1 1 Hacking | -11 -10 -10 -10 -9 -8 -8 -7 -7 -7 -7 -7 -5 -5 -5 -5 -5 -4 -4 -4 -4 -3 -3 -2 -1 --------- Run | Scr Mat Min Exi Min Mat Gar Fac Gar Fac Sto Rec Fac Ext Cet Arc Hub Fac Upp Upp Zhi Pro Res Res Acc Machines Accessed 180 | . 8 . 3 . 17 . 25 . 9 10 5 7 12 4 . 11 14 2 2 9 . 11 11 20 Terminals 104 | . 6 . . . 11 . 13 . 4 7 5 5 12 4 . 10 5 . 1 . . 4 6 11 Fabricators 12 | . . . . . . . 4 . 1 . . 1 . . . . 2 . . . . 1 1 2 Repair Stations 14 | . 1 . . . 1 . 1 . 1 2 . . . . . . 4 . . . . 3 1 . Recycling Units 9 | . 1 . . . 2 . 1 . 1 1 . . . . . . . . . . . . . 3 Scanalyzers 13 | . . . . . 2 . 3 . 1 . . . . . . . 2 . . . . 2 1 2 Garrison Access 13 | . . . . . 1 . 3 . 1 . . 1 . . . 1 1 . . . . 1 2 2 Total Hacks 918 | . 36 . 6 . 96 . 83 . 50 41 21 24 33 13 . 80 131 5 2 41 . 99 62 95 Successful 655 | . 30 . 6 . 78 . 63 . 37 25 10 16 22 4 . 60 101 5 2 41 . 69 38 48 Failed 255 | . 5 . . . 18 . 19 . 13 16 10 8 11 9 . 18 29 . . . . 29 23 47 Catastrophic 37 | . . . . . 4 . 2 . 2 1 1 1 2 . . . 5 . . . . 4 6 9 Database Lockouts 8 | . 1 . . . . . 1 . . . 1 . . . . 2 1 . . . . 1 1 . Manual 379 | . 26 . 1 . 41 . 30 . 11 31 9 11 15 1 . 41 53 . 1 . . 29 35 44 Terminals 534 | . 31 . . . 51 . 49 . 12 30 21 16 33 13 . 76 71 . 1 . . 35 35 60 Fabricators 60 | . . . . . . . 11 . 4 . . 5 . . . . 11 . . . . 8 10 11 Repair Stations 82 | . 4 . . . 4 . 3 . 3 6 . . . . . . 34 . . . . 25 3 . Recycling Units 35 | . 1 . . . 14 . 5 . 3 5 . . . . . . . . . . . . . 7 Scanalyzers 122 | . . . . . 23 . 9 . 25 . . . . . . . 14 . . . . 29 8 14 Garrison Access 32 | . . . . . 4 . 6 . 3 . . 3 . . . 4 1 . . . . 2 6 3 Terminal Hacks 298 | . 17 . 6 . 26 . 22 . 1 12 9 10 17 4 . 42 38 5 2 41 . 14 14 18 Record 55 | . 1 . 5 . . . . . . . 2 . . 4 . 3 1 4 2 29 . . 2 2 Part Schematic 26 | . 1 . . . 1 . 5 . . . 2 2 . . . 7 1 . . 4 . 3 . . Robot Schematic 5 | . 1 . . . 1 . 1 . . . . . . . . 1 1 . . . . . . . Robot Analysis 47 | . 8 . . . 6 . 2 . . 4 2 3 4 . . 3 5 . . 4 . 1 2 3 Prototype ID Bank 27 | . 3 . . . 2 . 4 . . . 1 . 2 . . 4 2 . . 4 . 1 1 3 Open Door 13 | . . . . . . . . . . 3 . 1 8 . . . . 1 . . . . . . Level Access Points 5 | . . . . . 1 . . . . . . . . . . 1 1 . . . . . 1 1 Branch Access Points 6 | . . . . . . . 1 . . . . 1 . . . . 1 . . . . 1 1 1 Emergency Access Points 1 | . . . . . . . . . . . . . . . . . 1 . . . . . . . Machine Index 4 | . . . . . . . 1 . . . . . . . . 1 1 . . . . . . 1 Terminal Index 5 | . . . . . 1 . . . . 1 . . . . . 1 . . . . . . 1 1 Fabricator Index 1 | . . . . . . . . . . . . . . . . 1 . . . . . . . . Repair Station Index 1 | . . . . . . . . . . . . . . . . . . . . . . 1 . . Scanalyzer Index 2 | . . . . . 1 . . . . . . . . . . . . . . . . . 1 . Garrison Index 1 | . . . . . . . . . . . . . . . . . . . . . . . 1 . Alert Level 1 | . 1 . . . . . . . . . . . . . . . . . . . . . . . Unreport Threat 26 | . . . . . 2 . 1 . . 3 1 2 . . . 3 6 . . . . 2 3 3 Locate Traps 17 | . 1 . . . 4 . 1 . . . . 1 1 . . 4 4 . . . . 1 . . Disarm Traps 1 | . . . . . . . . . . . . . . . . 1 . . . . . . . . Reprogram Traps 6 | . . . . . . . . . . . . . 1 . . 3 2 . . . . . . . Dispatch Records 5 | . . . . . 1 . . . . . . . . . . 3 1 . . . . . . . Maintenance Status 1 | . . . . . . . . . . . . . . . . . 1 . . . . . . . Security Status 1 | . . . . . . . . . . . . . . . . . 1 . . . . . . . Transport Status 2 | . . . . . 2 . . . . . . . . . . . . . . . . . . . Reinforcement Status 1 | . . . . . . . 1 . . . . . . . . . . . . . . . . . Recall Investigation 7 | . . . . . . . 2 . . . . . . . . . 3 . . . . 2 . . Recall Extermination 7 | . . . . . . . 1 . . . . . . . . . 2 . . . . 2 . 2 Recall Reinforcements 4 | . 1 . . . 1 . . . 1 . . . . . . 1 . . . . . . . . Recall Assault 2 | . . . . . . . . . . . . . 1 . . . 1 . . . . . . . Hauler Manifests 6 | . . . . . 2 . 1 . . 1 . . . . . 1 . . . . . . 1 . Registered Components 1 | . . . . . . . . . . . . . . . . 1 . . . . . . . . Registered Prototypes 4 | . . . . . 1 . 1 . . . . . . . . . 1 . . . . . . 1 Zone Layout 6 | . . . . . . . . . . . 1 . . . . 3 2 . . . . . . . EX-Prototype ID Bank 1 | . . . 1 . . . . . . . . . . . . . . . . . . . . . Fabricator Hacks 32 | . . . . . . . 8 . 2 . . 2 . . . . 7 . . . . 4 4 5 Network Status 2 | . . . . . . . 2 . . . . . . . . . . . . . . . . . Load Schematic 14 | . . . . . . . 3 . 1 . . 1 . . . . 4 . . . . 2 2 1 Build 16 | . . . . . . . 3 . 1 . . 1 . . . . 3 . . . . 2 2 4 Repair Station Hacks 70 | . 4 . . . 4 . 2 . 1 5 . . . . . . 31 . . . . 21 2 . Scan Component 35 | . 2 . . . 2 . 1 . . 3 . . . . . . 15 . . . . 11 1 . Repair 33 | . 2 . . . 2 . 1 . . 2 . . . . . . 15 . . . . 10 1 . Refit 2 | . . . . . . . . . 1 . . . . . . . 1 . . . . . . . Recycling Unit Hacks 18 | . . . . . 9 . 3 . 1 1 . . . . . . . . . . . . . 4 Process 3 | . . . . . 2 . 1 . . . . . . . . . . . . . . . . . Report Inventory 6 | . . . . . 4 . 1 . . . . . . . . . . . . . . . . 1 Retrieve Matter 3 | . . . . . 2 . 1 . . . . . . . . . . . . . . . . . Retrieve Components 6 | . . . . . 1 . . . 1 1 . . . . . . . . . . . . . 3 Scanalyzer 98 | . . . . . 21 . 6 . 25 . . . . . . . 10 . . . . 23 4 9 Insert Component 46 | . . . . . 9 . 3 . 11 . . . . . . . 5 . . . . 12 2 4 Analyze 52 | . . . . . 12 . 3 . 14 . . . . . . . 5 . . . . 11 2 5 Garrison Access Hacks 13 | . . . . . 2 . 4 . . . . . . . . . 1 . . . . 2 1 3 Unlock Access 2 | . . . . . 1 . 1 . . . . . . . . . . . . . . . . . Seal Access 7 | . . . . . . . 2 . . . . . . . . . 1 . . . . 1 1 2 Coupler Status 4 | . . . . . 1 . 1 . . . . . . . . . . . . . . 1 . 1 Unauthorized Hacks 126 | . 9 . . . 16 . 18 . 7 7 1 4 5 . . 18 14 . . . . 5 13 9 Terminals 73 | . 8 . . . 8 . 10 . 2 6 1 . 5 . . 14 8 . . . . 2 4 5 Track 26 | . 4 . . . 3 . 6 . 1 1 . . 1 . . 5 3 . . . . . . 2 Assimilate 13 | . 1 . . . . . 1 . . 2 . . 2 . . 4 1 . . . . . 2 . Botnet 26 | . 2 . . . 3 . 2 . 1 2 1 . 2 . . 4 3 . . . . 2 1 3 Operators 8 | . 1 . . . 2 . 1 . . 1 . . . . . 1 1 . . . . . 1 . Fabricators 17 | . . . . . . . 2 . 1 . . 2 . . . . 3 . . . . 3 4 2 Report 3 | . . . . . . . 1 . . . . . . . . . . . . . . 1 1 . Prioritize 4 | . . . . . . . . . . . . 1 . . . . . . . . . 1 1 1 Siphon 8 | . . . . . . . 1 . 1 . . 1 . . . . 2 . . . . 1 1 1 Haulers 2 | . . . . . . . . . . . . . . . . . 1 . . . . . 1 . Repair Stations 2 | . . . . . . . . . . . . . . . . . 1 . . . . . 1 . Mechanics 2 | . . . . . . . . . . . . . . . . . 1 . . . . . 1 . Recycling Units 11 | . 1 . . . 5 . 1 . 1 1 . . . . . . . . . . . . . 2 Monitor 2 | . . . . . 1 . . . . . . . . . . . . . . . . . . 1 Recyclers 6 | . . . . . 2 . 1 . 1 1 . . . . . . . . . . . . . 1 Tunnel 3 | . 1 . . . 2 . . . . . . . . . . . . . . . . . . . Scanalyzers 7 | . . . . . 2 . 3 . . . . . . . . . 2 . . . . . . . Extract 7 | . . . . . 2 . 3 . . . . . . . . . 2 . . . . . . . Garrison Access 16 | . . . . . 1 . 2 . 3 . . 2 . . . 4 . . . . . . 4 . Broadcast 2 | . . . . . . . . . . . . . . . . 1 . . . . . . 1 . Decoy 3 | . . . . . 1 . 1 . 1 . . . . . . . . . . . . . . . Redirect 2 | . . . . . . . . . . . . 1 . . . . . . . . . . 1 . Reprogram 2 | . . . . . . . . . . . . . . . . 2 . . . . . . . . Intercept 5 | . . . . . . . 1 . 1 . . 1 . . . 1 . . . . . . 1 . Watchers 2 | . . . . . . . . . 1 . . . . . . . . . . . . . 1 . Data Cores Recovered 2 | . . . . . . . 1 . . . . . . . . 1 . . . . . . . . Used 1 | . . . . . . . 1 . . . . . . . . . . . . . . . . . Hacking Detections 136 | . 7 . . . 14 . 24 . 8 7 5 6 6 3 . 9 12 . . . . 10 8 17 Full Trace Events 28 | . 5 . . . 4 . 4 . 1 . 2 . . 1 . 1 1 . . . . 4 2 3 Feedback Events 3 | . 1 . . . . . . . . . . . . . . . . . . . . 2 . . Corruption 2 | . 1 . . . . . . . . . . . . . . . . . . . . 1 . . Hackware Fried 1 | . . . . . . . . . . . . . . . . . . . . . . 1 . . Feedback Blocked . | . . . . . . . . . . . . . . . . . . . . . . . . . Robot Schematics Acquired 5 | . 1 . . . 1 . 1 . . . . . . . . 1 1 . . . . . . . Robots Built 14 | . . . . . . . . . . . . . . . . . . . . . . 1 1 12 Matter 1180 | . . . . . . . . . . . . . . . . . . . . . . 114 114 952 Time 192 | . . . . . . . . . . . . . . . . . . . . . . 40 40 112 Total Robot Build Rating 74 | . . . . . . . . . . . . . . . . . . . . . . 1 1 72 Part Schematics Acquired 102 | . 1 . . . 13 . 16 . 10 . 2 2 . . . 7 30 . . 4 . 12 1 4 Parts Built 14 | . . . . . . . 5 . 1 . . 1 . . . . 4 . . . . 2 1 . Matter 1595 | . . . . . . . 599 . 109 . . 189 . . . . 463 . . . . 109 126 . Time 485 | . . . . . . . 193 . 36 . . 67 . . . . 129 . . . . 18 42 . Total Part Build Rating 58 | . . . . . . . 23 . 3 . . 4 . . . . 18 . . . . 6 4 . Parts Repaired 33 | . 2 . . . 2 . 1 . . 2 . . . . . . 15 . . . . 10 1 . Time 1345 | . 64 . . . 70 . 16 . . 148 . . . . . . 584 . . . . 439 24 . Parts Recycled . | . . . . . . . . . . . . . . . . . . . . . . . . . Recycled Matter 817 | . . . . . 405 . 412 . . . . . . . . . . . . . . . . . Retrieved Matter 1340 | . . . . . 467 . 873 . . . . . . . . . . . . . . . . . Retrieved Components 41 | . . . . . 10 . . . 1 . . . . . . . . . . . . . . 30 Parts Scanalyzed 43 | . . . . . 9 . 3 . 10 . . . . . . . 5 . . . . 11 1 4 Part Schematics Acquired 41 | . . . . . 9 . 3 . 10 . . . . . . . 5 . . . . 9 1 4 Parts Damaged 4 | . . . . . 1 . . . 1 . . . . . . . . . . . . 1 1 . Bothacking | -11 -10 -10 -10 -9 -8 -8 -7 -7 -7 -7 -7 -5 -5 -5 -5 -5 -4 -4 -4 -4 -3 -3 -2 -1 ------------ Run | Scr Mat Min Exi Min Mat Gar Fac Gar Fac Sto Rec Fac Ext Cet Arc Hub Fac Upp Upp Zhi Pro Res Res Acc Used RIF Installer 2 | . . . . . . 1 . 1 . . . . . . . . . . . . . . . . Command Fork 1 | . . . . . . . . 1 . . . . . . . . . . . . . . . . Robots Hacked 43 | . 3 . . . 10 . 23 . . . . . 2 2 . . . . . 3 . . . . Non-combat 37 | . 3 . . . 10 . 23 . . . . . 1 . . . . . . . . . . . Combat 6 | . . . . . . . . . . . . . 1 2 . . . . . 3 . . . . Robot Hacks Applied 54 | . 4 . . . 10 . 33 . . . . . 2 2 . . . . . 3 . . . . parse_system 10 | . 1 . . . . . 3 . . . . . 1 2 . . . . . 3 . . . . no_distress 15 | . 3 . . . 10 . 2 . . . . . . . . . . . . . . . . . generate_echo 1 | . . . . . . . 1 . . . . . . . . . . . . . . . . . find_chute 3 | . . . . . . . 3 . . . . . . . . . . . . . . . . . ignore_repairs 4 | . . . . . . . 4 . . . . . . . . . . . . . . . . . map_walls 1 | . . . . . . . 1 . . . . . . . . . . . . . . . . . map_earth 1 | . . . . . . . 1 . . . . . . . . . . . . . . . . . drop_inventory 2 | . . . . . . . 2 . . . . . . . . . . . . . . . . . recall_reinforcements 1 | . . . . . . . 1 . . . . . . . . . . . . . . . . . find_recycling 1 | . . . . . . . . . . . . . 1 . . . . . . . . . . . ignore_parts 9 | . . . . . . . 9 . . . . . . . . . . . . . . . . . map_route 1 | . . . . . . . 1 . . . . . . . . . . . . . . . . . relay_feed 1 | . . . . . . . 1 . . . . . . . . . . . . . . . . . overload_power 1 | . . . . . . . 1 . . . . . . . . . . . . . . . . . amplify_resonance 2 | . . . . . . . 2 . . . . . . . . . . . . . . . . . formatsys_high 1 | . . . . . . . 1 . . . . . . . . . . . . . . . . . Relay Couplers Released 17 | . . . . . . 10 . 3 . . . . . . . . . . . . . . . 4 Machine Destruction 13 | . . . . . . 10 . 3 . . . . . . . . . . . . . . . . Programmers 4 | . . . . . . . . . . . . . . . . . . . . . . . . 4 Attached 6 | . . . . . . 4 2 . . . . . . . . . . . . . . . . . Robots Rewired 24 | . . . . . . . . . . . 17 . 6 . . . . . . . . . . 1 Allies Hacked . | . . . . . . . . . . . . . . . . . . . . . . . . . Hacks Repelled . | . . . . . . . . . . . . . . . . . . . . . . . . . Allies | -11 -10 -10 -10 -9 -8 -8 -7 -7 -7 -7 -7 -5 -5 -5 -5 -5 -4 -4 -4 -4 -3 -3 -2 -1 -------- Run | Scr Mat Min Exi Min Mat Gar Fac Gar Fac Sto Rec Fac Ext Cet Arc Hub Fac Upp Upp Zhi Pro Res Res Acc Total Allies 68 | . 1 3 . . . . 2 . . 2 17 . 14 5 . 7 1 . . . . 1 2 13 Largest Group 15 | . 1 4 1 1 1 . 2 . . 2 15 10 10 12 12 9 1 1 1 1 1 1 2 10 Highest-Rated Group 807 | . 10 50 10 10 10 . 38 . . 34 380 247 436 807 807 559 26 26 26 26 26 10 36 300 Highest-Rated Ally 156 | . 10 16 10 10 10 . 26 . . 24 37 34 156 156 150 94 26 26 26 26 26 10 26 44 Total Orders 73 | . 2 6 . 2 2 . 11 . . 6 1 . 3 . 2 14 4 2 2 . 4 5 4 3 STAY 33 | . 1 2 . 1 1 . 5 . . 3 . . 1 . 1 7 2 1 1 . 2 3 2 . ROAM 2 | . . . . . . . 1 . . . . . . . . . . . . . 1 . . . FOLLOW 32 | . 1 2 . 1 1 . 5 . . 3 1 . 1 . 1 7 2 1 1 . 1 2 2 . GUARD 2 | . . . . . . . . . . . . . 1 . . . . . . . . . . 1 AID 4 | . . 2 . . . . . . . . . . . . . . . . . . . . . 2 Ally Attacks 441 | . . 32 . . . . . . . . 78 24 139 74 26 43 . . . . . . . 25 Total Damage 10754 | . . 394 . . . . . . . . 2277 823 3030 1587 673 1235 . . . . . . . 735 Kills 93 | . . 6 . . . . . . . . 31 4 22 11 5 12 . . . . . . . 2 Allies Corrupted 2 | . . . . . . . . . . . . . 1 . . 1 . . . . . . . . Allies Melted . | . . . . . . . . . . . . . . . . . . . . . . . . . Intel | -11 -10 -10 -10 -9 -8 -8 -7 -7 -7 -7 -7 -5 -5 -5 -5 -5 -4 -4 -4 -4 -3 -3 -2 -1 ------- Run | Scr Mat Min Exi Min Mat Gar Fac Gar Fac Sto Rec Fac Ext Cet Arc Hub Fac Upp Upp Zhi Pro Res Res Acc Robot Analysis Total 47 | . 8 . . . 6 . 2 . . 4 2 3 4 . . 3 5 . . 4 . 1 2 3 Derelict Logs Recovered 4 | . . 1 . 1 . . . . . . . . . . . . . 1 1 . . . . . Drone Launches . | . . . . . . . . . . . . . . . . . . . . . . . . . Drone Recoveries . | . . . . . . . . . . . . . . . . . . . . . . . . . Exploration | -11 -10 -10 -10 -9 -8 -8 -7 -7 -7 -7 -7 -5 -5 -5 -5 -5 -4 -4 -4 -4 -3 -3 -2 -1 ------------- Run | Scr Mat Min Exi Min Mat Gar Fac Gar Fac Sto Rec Fac Ext Cet Arc Hub Fac Upp Upp Zhi Pro Res Res Acc Turns Passed 18243 | 74 1615 322 213 306 1889 869 1866 211 978 474 535 253 842 267 356 856 1123 350 248 108 348 1545 490 2105 Spaces Moved 23322 | 44 1127 479 374 451 2401 600 2652 286 1671 635 515 459 952 294 250 1259 1550 738 557 184 647 2360 786 2051 Core 20 | 1 . . . 2 . . . . . . . . . . . . . . . . . . . 17 Treads 249 | . 55 . . . . . . . . . . . . . . . . . . . . . . 194 Legs 588 | . . . . . 67 441 . . . . . . . . . . . . . . . . . 80 Wheels 455 | 43 412 . . . . . . . . . . . . . . . . . . . . . . . Hover 21099 | . 660 479 374 449 1527 159 2652 286 1671 635 515 459 952 294 250 1259 1550 738 557 184 647 2360 786 1656 Flight 911 | . . . . . 807 . . . . . . . . . . . . . . . . . . 104 Fastest Speed 27 | 50 56 56 56 56 34 52 38 40 40 40 40 34 34 36 36 34 34 34 34 34 34 34 38 27 Average Speed 48 | 98 80 56 56 56 44 109 46 40 40 46 58 36 50 41 64 40 34 34 34 34 34 39 40 59 Slowest Speed 190 | 100 160 56 56 150 130 130 112 40 108 105 102 98 103 100 105 105 106 34 34 38 34 95 108 190 Overloaded Moves . | . . . . . . . . . . . . . . . . . . . . . . . . . Propulsion Burnouts . | . . . . . . . . . . . . . . . . . . . . . . . . . Robots Hopped 6 | . . . . . 2 . . . . . . . . . . . . . . . . . . 4 Cave-ins Triggered 1 | . . . . . 1 . . . . . . . . . . . . . . . . . . . Exploration Rate (%) 61 | 4 99 74 73 86 89 66 54 39 32 67 85 10 87 80 95 92 25 72 77 62 79 31 23 41 Regions Visited 24 Branch Regions 13 Pre-discovered Areas 10 | . 1 1 1 1 2 . . . . . . . . . . . . 1 . 3 . . . . Known Exits Taken 10 | . 1 . . . 1 . 1 . 1 . . 1 . . . 1 1 . . . 1 1 1 . Unknown Exits Taken 12 | 1 . 1 1 1 . . . . . 1 1 . 1 1 1 . . 1 1 1 . . . . Scrap Searched 11 | . . . . 2 . . . . . . . . . . . . . 2 2 . 5 . . . Spaces Dug 295 | . 4 2 . . 29 . 24 4 54 12 16 . . . . 21 23 16 14 . 1 48 7 20 Terrain Destroyed 1584 | . 4 35 . . 47 12 25 42 76 31 34 . 100 2 3 549 73 101 40 . 44 61 32 273 Melee 34 | . 4 . . . 22 . 5 . . . . . . . . . . . . . . . . 3 Projectile 236 | . . 2 . . 7 . 20 1 12 7 18 . 3 2 3 18 18 29 2 . 14 42 9 29 AOE 1314 | . . 33 . . 18 12 . 41 64 24 16 . 97 . . 531 55 72 38 . 30 19 23 241 Terrain Rammed . | . . . . . . . . . . . . . . . . . . . . . . . . . Walls Destroyed . | . . . . . . . . . . . . . . . . . . . . . . . . . Machines Disabled . | . . . . . . . . . . . . . . . . . . . . . . . . . Actions | -11 -10 -10 -10 -9 -8 -8 -7 -7 -7 -7 -7 -5 -5 -5 -5 -5 -4 -4 -4 -4 -3 -3 -2 -1 --------- Run | Scr Mat Min Exi Min Mat Gar Fac Gar Fac Sto Rec Fac Ext Cet Arc Hub Fac Upp Upp Zhi Pro Res Res Acc Total 28859 | 64 1757 517 377 494 3034 722 3162 364 1920 766 718 517 1201 410 377 1505 2054 789 591 228 725 2894 927 2746 Wait 2811 | 2 449 27 1 32 327 34 275 35 119 69 86 24 95 85 36 115 357 9 8 12 15 304 66 229 Move 23288 | 43 1126 478 373 450 2396 598 2652 285 1670 634 514 458 951 293 249 1258 1549 737 556 183 646 2359 785 2045 Hop 4 | . . . . . 2 . . . . . . . . . . . . . . . . . . 2 Pick Up 219 | 6 20 . 1 1 29 4 18 1 11 3 2 5 16 2 6 8 19 . 1 5 6 18 4 33 Fast Attach 231 | 6 5 . . . 23 9 18 . 12 10 . 5 3 3 5 4 24 1 2 7 4 20 15 55 Attach 132 | 1 2 . . 1 12 1 9 1 4 1 1 4 9 . 3 9 12 . . 3 2 19 4 34 Detach 64 | . . . . . 11 . 4 . 5 2 . 2 . . 1 2 5 . . 1 . 13 3 15 Swap 172 | 3 18 4 1 3 31 6 18 1 8 3 1 3 14 2 2 10 1 1 . 3 1 16 5 17 Drop 290 | . 24 . 1 1 33 10 31 . 24 11 2 3 8 5 7 11 21 1 2 11 8 19 16 41 Fire 1152 | 3 29 6 . 6 56 47 88 15 54 33 16 13 72 18 68 60 66 40 22 . 42 112 29 257 Melee 169 | . 17 2 . . 83 . 42 . . . . . 2 2 . . . . . 3 . 1 . 17 Ram . | . . . . . . . . . . . . . . . . . . . . . . . . . Kick . | . . . . . . . . . . . . . . . . . . . . . . . . . Crush 4 | . 3 . . . . . . . . . . . . . . . . . . . . . . 1 Escape Stasis 60 | . . . . . . 13 . 26 13 . . . 8 . . . . . . . . . . . Rewire 119 | . . . . . . . . . . . 96 . 23 . . . . . . . . . . . Trap 144 | . 64 . . . 31 . 7 . . . . . . . . 28 . . . . 1 13 . . Miscellaneous . | . . . . . . . . . . . . . . . . . . . . . . . . . Route ------- -11/Scrapyard -10/Materials (discovered 5 exits: *Mat x3 / *Min x2) -10/Mines -10/Exiles (discovered 2 exits: [*Min x2]) -9/Mines -8/Materials (discovered 4 exits: *Fac x3 / Gar) -8/Garrison (discovered 2 exits: *Fac x2) -7/Factory (discovered 7 exits: [*Fac x3] / Sto / *Low x2 / Gar) -7/Garrison -7/Factory (discovered 2 exits: *Sto / *Low) -7/Storage -7/Recycling -5/Factory (discovered 4 exits: Upp x2 / *Ext x2) -5/Extension (discovered 3 exits: *Fac x2 / *Cet) -5/Cetus -5/Archives (discovered 3 exits: *Fac / *Hub x2) -5/Hub_04(d) (discovered 4 exits: *Fac x4) -4/Factory (discovered 7 exits: *Res x4 / *Upp x2 / Arm) -4/Upper Caves -4/Upper Caves (discovered 2 exits: *Res / *Zhi) -4/Zhirov -3/Proximity Caves -3/Research (discovered 3 exits: *Res / Tes x2) -2/Research (discovered 5 exits: *Acc x3 / Qua x2) -1/Access (discovered 2 exits: Sur / Com) History --------- Turn | Location | Event 16 | -11/Scrapyard | Discovered new exit (range 15) 75 | -11/Scrapyard | Entered Materials 324 | -10/Materials | Build established: Mutant 448 | -10/Materials | Discovered new exit (range 11) 655 | -10/Materials | Discovered new exit (range 7) 726 | -10/Materials | Identified exit to Mines 998 | -10/Materials | Discovered new exit (range 11) 1004 | -10/Materials | Identified exit to Materials 1269 | -10/Materials | Build established: Scavenger-Mutant 1285 | -10/Materials | Repaired Hover Unit 1325 | -10/Materials | Repaired Lgt. Nuclear Core 1361 | -10/Materials | Discovered exit to Materials (range 5) 1535 | -10/Materials | Discovered exit to Materials (range 16) 1673 | -10/Materials | Central database locked down 1690 | -10/Materials | Entered Mines 1690 | -10/Mines | Accompanied by 1 ally 1718 | -10/Mines | Learned location of Storage (-7) 1749 | -10/Mines | Assisted by bots powering up and referring to "LRC-V3" 1812 | -10/Mines | Learned 2 Materials zone layouts 1913 | -10/Mines | Deemed a non-threat by the Exiles lab entrance 1913 | -10/Mines | Discovered new exit (range 5) 2012 | -10/Mines | Entered Exiles 2012 | -10/Exiles | Accompanied by 1 ally 2021 | -10/Exiles | Discovered new exit (range 15) 2039 | -10/Exiles | Met 8R-AWN 2051 | -10/Exiles | Met EX-HEX 2080 | -10/Exiles | Met EX-DEC 2111 | -10/Exiles | Met EX-BIN 2117 | -10/Exiles | Aligned with FarCom system 2118 | -10/Exiles | Given EX-Vault access code 2141 | -10/Exiles | Opened EX-Vault 2148 | -10/Exiles | Found Gui. Plasma Cannon 2161 | -10/Exiles | Warned to stay clear of 0b10 Research branches 2190 | -10/Exiles | Learned location of Zion (-7) 2215 | -10/Exiles | Discovered new exit (range 14) 2225 | -10/Exiles | Left Exiles lab with Gui. Plasma Cannon 2225 | -10/Exiles | Entered Mines 2225 | -9/Mines | Accompanied by 1 ally 2272 | -9/Mines | Discovered new exit (range 7) 2360 | -9/Mines | Destroyed YI-UF0 2531 | -9/Mines | Entered Materials 2531 | -8/Materials | Accompanied by 1 ally 2531 | -8/Materials | Evolved 4 slots: Propulsion x2, Utility x2 2532 | -8/Materials | Identified exit to Factory 2553 | -8/Materials | Build established: Scavenger-Scout 2874 | -8/Materials | Discovered exit to Factory (range 8) 2890 | -8/Materials | Crushed by falling debris 2924 | -8/Materials | Lost 7 parts (1p3n2u1w) 3650 | -8/Materials | Build established: Hacker-Mutant 3778 | -8/Materials | Repaired Mni. Grenade Launcher 3817 | -8/Materials | Repaired Maneuvering Thrusters? 4417 | -8/Materials | Identified exit to Garrison 4420 | -8/Materials | Entered Garrison 4484 | -8/Garrison | Triggered checkpoint 4534 | -8/Garrison | Garrison Relay disabled 4742 | -8/Garrison | Discovered exit to Factory (range 10) 4757 | -8/Garrison | Triggered checkpoint 4791 | -8/Garrison | Garrison Relay disabled 4864 | -8/Garrison | Triggered checkpoint 4931 | -8/Garrison | Discovered exit to Factory (range 12) 4955 | -8/Garrison | Installed Relay Interface Framework 5164 | -8/Garrison | Triggered checkpoint 5191 | -8/Garrison | Destroyed 7 combat bots 5196 | -8/Garrison | Triggered checkpoint 5289 | -8/Garrison | Entered Factory 5289 | -7/Factory | Evolved 2 slots: Utility x2 5373 | -7/Factory | Discovered new exit (range 16) 5752 | -7/Factory | Central database locked down 5808 | -7/Factory | Fabricated Aerolev Unit? 5812 | -7/Factory | Discovered new exit (range 7) 5838 | -7/Factory | Identified exit to Storage 5838 | -7/Factory | Identified exit to Lower Caves 6179 | -7/Factory | Fabricated Powered Armor? 6204 | -7/Factory | Discovered new exit (range 15) 6567 | -7/Factory | Repaired Mni. Grenade Launcher 6652 | -7/Factory | Discovered new exit (range 37) 6830 | -7/Factory | Fabricated Antigrav System? 7000 | -7/Factory | Local fabrication network quarantined 7154 | -7/Factory | Identified exit to Garrison 7155 | -7/Factory | Entered Garrison 7157 | -7/Garrison | Expanded RIF knowledge: Command Fork 7207 | -7/Garrison | Triggered checkpoint 7211 | -7/Garrison | Triggered checkpoint 7273 | -7/Garrison | Destroyed 10 combat bots 7280 | -7/Garrison | Discovered new exit (range 12) 7299 | -7/Garrison | Triggered checkpoint 7323 | -7/Garrison | Garrison Relay disabled 7366 | -7/Garrison | Entered Factory 7460 | -7/Factory | Discovered exit to Lower Caves (range 16) 8018 | -7/Factory | Fabricated Hacking Suite (x1) 8252 | -7/Factory | Discovered exit to Storage (range 5) 8344 | -7/Factory | Entered Storage 8460 | -7/Storage | Repaired Aerolev Unit 8522 | -7/Storage | Found Prototype Launcher 8522 | -7/Storage | Identified Rocket Array 8561 | -7/Storage | Repaired Broken Cld. Particle Cannon 8740 | -7/Storage | Used back door to open Recycling access 8740 | -7/Storage | Discovered new exit (range 4) 8818 | -7/Storage | Entered Recycling 8852 | -7/Recycling | Spotter reported a threat 8860 | -7/Recycling | Spotter reported a threat 8861 | -7/Recycling | Spotter reported a threat 8867 | -7/Recycling | Spotter reported a threat 8878 | -7/Recycling | Spotter reported a threat 8890 | -7/Recycling | Spotter reported a threat 8946 | -7/Recycling | Spotter reported a threat 8959 | -7/Recycling | Spotter reported a threat 8960 | -7/Recycling | Spotter reported a threat 8971 | -7/Recycling | Spotter reported a threat 9000 | -7/Recycling | Spotter reported a threat 9078 | -7/Recycling | Spotter reported a threat 9078 | -7/Recycling | Spotter reported a threat 9079 | -7/Recycling | Spotter reported a threat 9124 | -7/Recycling | Spotter reported a threat 9158 | -7/Recycling | Spotter reported a threat 9158 | -7/Recycling | Spotter reported a threat 9158 | -7/Recycling | Spotter reported a threat 9158 | -7/Recycling | Spotter reported a threat 9193 | -7/Recycling | Build established: Commander-Mutant 9205 | -7/Recycling | Spotter reported a threat 9205 | -7/Recycling | Spotter reported a threat 9205 | -7/Recycling | Spotter reported a threat 9235 | -7/Recycling | Spotter reported a threat 9235 | -7/Recycling | Spotter reported a threat 9235 | -7/Recycling | Spotter reported a threat 9235 | -7/Recycling | Spotter reported a threat 9244 | -7/Recycling | Discovered new exit (range 15) 9283 | -7/Recycling | Spotter reported a threat 9283 | -7/Recycling | Spotter reported a threat 9336 | -7/Recycling | Spotter reported a threat 9336 | -7/Recycling | Spotter reported a threat 9353 | -7/Recycling | Entered Factory 9353 | -5/Factory | Accompanied by 10 allies 9353 | -5/Factory | Evolved 4 slots: Power x1, Propulsion x1, Utility x2 9389 | -5/Factory | Identified exit to Upper Caves 9389 | -5/Factory | Identified exit to Extension 9479 | -5/Factory | Fabricated Cld. Airjet? 9606 | -5/Factory | Entered Extension 9606 | -5/Extension | Accompanied by 2 allies 9665 | -5/Extension | Rescued a captive Derelict 9701 | -5/Extension | Lost 3 parts (2n1w) 9703 | -5/Extension | Rescued a captive Derelict 9745 | -5/Extension | Build established: Hacker-Mutant 9789 | -5/Extension | Rescued A7 9804 | -5/Extension | Rescued a captive Derelict 9906 | -5/Extension | First assault squad dispatched 9921 | -5/Extension | Disrupted transfer network 10040 | -5/Extension | Spotted B-75 Beast 10045 | -5/Extension | Allies destroyed B-75 Beast 10056 | -5/Extension | Spotted B-75 Beast 10070 | -5/Extension | Destroyed B-75 Beast 10098 | -5/Extension | Lost 3 parts (1n1u1w) 10120 | -5/Extension | Discovered new exit (range 3) 10213 | -5/Extension | Rescued a captive Derelict 10379 | -5/Extension | Rescued a captive Derelict 10395 | -5/Extension | Rescued a captive Derelict 10416 | -5/Extension | Discovered new exit (range 10) 10417 | -5/Extension | Discovered new exit (range 6) 10448 | -5/Extension | Entered Cetus 10448 | -5/Cetus | Accompanied by 10 allies (A7) 10453 | -5/Cetus | Acquired a Cetus Manufacturing Module code from A7 10464 | -5/Cetus | Spotted Cetus Guard 10464 | -5/Cetus | Spotted Cetus Guard 10468 | -5/Cetus | Spotted Cetus Guard 10469 | -5/Cetus | Spotted Cetus Guard 10476 | -5/Cetus | Allies destroyed Cetus Guard 10477 | -5/Cetus | Allies destroyed Cetus Guard 10482 | -5/Cetus | Allies destroyed Cetus Guard 10482 | -5/Cetus | Allies destroyed Cetus Guard 10537 | -5/Cetus | Started Cetus Manufacturing Module 10562 | -5/Cetus | Manufactured an Enhanced Grunt 10583 | -5/Cetus | Escorted A7 to Cetus Mainframe 10587 | -5/Cetus | Manufactured an Enhanced Grunt 10609 | -5/Cetus | Found a strange terminal 10612 | -5/Cetus | Manufactured an Enhanced Grunt 10637 | -5/Cetus | Manufactured an Enhanced Grunt 10662 | -5/Cetus | Manufactured an Enhanced Grunt 10679 | -5/Cetus | Discovered new exit (range 16) 10715 | -5/Cetus | Entered Archives 10715 | -5/Archives | Accompanied by 12 allies (A7) 10720 | -5/Archives | Received a hacking code to weaken MAIN.C 10732 | -5/Archives | Unable to access archive contents 10741 | -5/Archives | Discovered new exit (range 15) 10766 | -5/Archives | Lost 4 parts (1p1n2u) 10989 | -5/Archives | Discovered new exit (range 16) 11004 | -5/Archives | Discovered new exit (range 15) 11071 | -5/Archives | Entered Hub_04(d) 11071 | -5/Hub_04(d) | Accompanied by 8 allies 11143 | -5/Hub_04(d) | Central database locked down 11163 | -5/Hub_04(d) | Identified exit to Factory 11224 | -5/Hub_04(d) | Build established: Scavenger-Mutant 11382 | -5/Hub_04(d) | Garrison activated, responded to threat 11403 | -5/Hub_04(d) | Found Exp. Thermal Shield 11579 | -5/Hub_04(d) | Central database locked down 11851 | -5/Hub_04(d) | Network Hub disabled 11890 | -5/Hub_04(d) | Network Hub disabled 11908 | -5/Hub_04(d) | Spotted Lightning 11915 | -5/Hub_04(d) | Spotted Lightning 11917 | -5/Hub_04(d) | Network Hub disabled 11919 | -5/Hub_04(d) | Spotted Lightning 11927 | -5/Hub_04(d) | Entered Factory 11927 | -4/Factory | Evolved 2 slots: Utility x2 12036 | -4/Factory | Repaired Cld. Airjet 12072 | -4/Factory | Repaired Centrium Medium Armor Plating 12095 | -4/Factory | Repaired Cld. Airjet 12110 | -4/Factory | Discovered new exit (range 13) 12114 | -4/Factory | Garrison activated, responded to threat 12130 | -4/Factory | Discovered new exit (range 16) 12177 | -4/Factory | First assault squad dispatched 12204 | -4/Factory | Found Quantum Capacitor 12224 | -4/Factory | Build established: Wizard-Mutant 12267 | -4/Factory | Identified exit to Upper Caves 12267 | -4/Factory | Identified exit to Armory 12267 | -4/Factory | Central database locked down 12267 | -4/Factory | Identified exit to Research 12321 | -4/Factory | Repaired Cld. Airjet 12359 | -4/Factory | Repaired Cld. Airjet 12389 | -4/Factory | Repaired Mic. Fission Core 12424 | -4/Factory | Repaired Cld. Airjet 12459 | -4/Factory | Repaired Cld. Airjet 12487 | -4/Factory | Repaired Mic. Fission Core? 12557 | -4/Factory | Repaired Centrium Medium Armor Plating? 12602 | -4/Factory | Lost 3 parts (2u1w) 12647 | -4/Factory | Fabricated Imp. Propulsion Shielding (x2) 12678 | -4/Factory | Fabricated Enh. Nova Cannon? 12713 | -4/Factory | Repaired Imp. KE Penetrator? 12790 | -4/Factory | Fabricated Adv. Targeting Computer? 12818 | -4/Factory | Repaired Cld. Airjet 12956 | -4/Factory | Repaired Lrg. Storage Unit 12994 | -4/Factory | Repaired Prc. Grenade Launcher 13029 | -4/Factory | Repaired Cld. Airjet 13050 | -4/Factory | Entered Upper Caves 13050 | -4/Upper Caves | Accompanied by 1 ally 13107 | -4/Upper Caves | Destroyed 8 combat bots 13115 | -4/Upper Caves | Learned location of Testing (-3) 13162 | -4/Upper Caves | Learned 8 Research zone layouts 13162 | -4/Upper Caves | Learned Armory security intel 13341 | -4/Upper Caves | Discovered new exit (range 10) 13343 | -4/Upper Caves | Encountered a Warlord checkpoint 13400 | -4/Upper Caves | Entered another Upper Caves area 13400 | -4/Upper Caves | Accompanied by 1 ally 13424 | -4/Upper Caves | Discovered exit to Research (range 10) 13462 | -4/Upper Caves | Build established: Hacker-Mutant 13526 | -4/Upper Caves | Learned location of 1 exit from Proximity Caves 13612 | -4/Upper Caves | Found Alien Artifact 13612 | -4/Upper Caves | Identified Dimensional Node Initializer 13612 | -4/Upper Caves | Initialized slip node 13619 | -4/Upper Caves | Discovered new exit (range 14) 13620 | -4/Upper Caves | Attracted the attention of an 0b10 checkpoint 13648 | -4/Upper Caves | Entered Zhirov 13648 | -4/Zhirov | Accompanied by 1 ally 13648 | -4/Zhirov | Discovered new exit (range 4) 13659 | -4/Zhirov | Met Zhirov 13672 | -4/Zhirov | Learned location of Quarantine (-2) 13672 | -4/Zhirov | Learned location of Command (-1) 13679 | -4/Zhirov | Zhirov requested help retrieving the SGEMP Prototype 13686 | -4/Zhirov | Found Alien Artifact 13686 | -4/Zhirov | Identified Integrated Dissipator 13686 | -4/Zhirov | Installed Integrated Dissipator, increased core heat dissipation (+20) 13696 | -4/Zhirov | Found Alien Artifact 13756 | -4/Zhirov | Entered Proximity Caves 13756 | -3/Proximity Caves | Accompanied by 1 ally 14104 | -3/Proximity Caves | Entered Research 14104 | -3/Research | Evolved 2 slots: Utility x2 14105 | -3/Research | Identified exit to Research 14184 | -3/Research | Fabricated O-16 Technician? 14355 | -3/Research | Fabricated Imp. Propulsion Shielding (x2) 14372 | -3/Research | Found Fusion Bomb Launcher 14376 | -3/Research | Identified exit to Testing 14661 | -3/Research | Repaired Centrium Medium Armor Plating 14703 | -3/Research | Repaired Enh. Nova Cannon? 14713 | -3/Research | Lost 4 parts (1p1n1u1w) 14781 | -3/Research | Repaired Cld. Gravmag System? 14815 | -3/Research | Repaired Cld. Airjet 14850 | -3/Research | Repaired Cld. Airjet? 14875 | -3/Research | Identified Transdimensional Reconstructor 15042 | -3/Research | Repaired Exp. Utility Shielding? 15161 | -3/Research | Imp. Hacking Suite fried by hacking feedback 15303 | -3/Research | Repaired Broken Lgt. Particle Reactor 15342 | -3/Research | Central database locked down 15352 | -3/Research | Repaired Exp. Cooling System? 15367 | -3/Research | Found Exp. Transmission Jammer 15445 | -3/Research | Repaired Centrium Medium Armor Plating 15491 | -3/Research | Repaired Cld. Gravmag System? 15604 | -3/Research | First assault squad dispatched 15649 | -3/Research | Entered another Research area 15649 | -2/Research | Evolved 2 slots: Utility x2 15700 | -2/Research | Identified exit to Quarantine 15728 | -2/Research | Fabricated Lrn. Terrain Scanner (x1) 15754 | -2/Research | Local fabrication network quarantined 15765 | -2/Research | Repaired Enh. Nova Cannon 15776 | -2/Research | Fabricated O-16 Technician (x1) 15991 | -2/Research | Build established: Hacker-Scout 16005 | -2/Research | Identified exit to Access 16119 | -2/Research | Central database locked down 16139 | -2/Research | Entered Access 16139 | -1/Access | Accompanied by 1 ally 16139 | -1/Access | Evolved 2 slots: Utility x2 16307 | -1/Access | Spotted B-99 Colossus 16349 | -1/Access | Identified exit to Command 16439 | -1/Access | Identified exit to Surface 16681 | -1/Access | Found Exp. Terrain Scan Processor 16866 | -1/Access | Lost 5 parts (2p2u1w) 16872 | -1/Access | Fabricated B-60 Warrior? 16903 | -1/Access | Fabricated B-60 Warrior? 16948 | -1/Access | Fabricated B-60 Warrior? 16970 | -1/Access | Spotted B-99 Colossus 16971 | -1/Access | Spotted B-99 Colossus 16985 | -1/Access | Fabricated B-60 Warrior? 17046 | -1/Access | Lost 11 parts (1p4n4u2w) 17282 | -1/Access | Build established: Hacker-Mutant 17444 | -1/Access | Local fabrication network quarantined 17510 | -1/Access | Found Fusion Bomb Launcher 17639 | -1/Access | First assault squad dispatched 17785 | -1/Access | Destroyed 24 combat bots 17856 | -1/Access | Destroyed B-99 Colossus 17913 | -1/Access | Lost 6 parts (2p2u2w) 17955 | -1/Access | Core integrity fell below 50% 18026 | -1/Access | Lost 14 parts (3p5n5u1w) 18202 | -1/Access | Core integrity fell below 20% 18225 | -1/Access | System corruption reached 10% 18244 | -1/Access | Destroyed by H-88 Terminator with KE Penetrator Last Messages --------------- 18236_ System corrupted: KE Penetrator targeting data glitched. 18236_ Slug penetrates L-61 Swordsman. 18237_ Penetrated by Slug. 18237_ P-80 Master resets L-61 Swordsman, system corruption cleaned. 18238_ Slug penetrates Wall. 18238_ Slug penetrates H-88 Terminator. 18239_ Activated siege mode. 18239_ Slug penetrates L-61 Swordsman. 18240_ Penetrated by Slug. 18240_ Slug penetrates L-61 Swordsman. 18240_ Gamma Rifle destroyed. 18241_ Penetrated by Slug. 18241_ Adv. Target Analyzer destroyed. 18242_ System corrupted: FCS attempts to trigger KE Penetrator. 18242_ System corrupted: KE Penetrator misfires. 18242_ Slug penetrates H-88 Terminator. 18242_ Slug penetrates L-61 Swordsman. 18242_ P-80 Master resets L-61 Swordsman, system corruption cleaned. 18243_ Penetrated by Slug. 18244_ Slug penetrates L-61 Swordsman. Map ----- +----------------------------------------------------+ | ????????????????????????????????# #???? | | ????????????????????????????????# #???? | | ????????????????????????????????# #???? | | ????????????????????????????????# "" "" #???? | | ????????????????????????????????# ""T"" ##### | | ??????????????#######???????????# """ + | | ??????????????" ! ??????????# ##### | | ??????????????"=% ####??????# #???? | | ??????????????" %% #################+######???? | | ?????????????"" % ^ #?????? | | ?????????????" %%% ^ #?????? | | ??????